fUSD/lending_fUSD_20251122
["ID","MTS","AMOUNT","RATE_DAILY","PERIOD"]
[394622973,1763794249774,-498.30342124,0.00016595,2]
[394622974,1763794249783,-500.0,0.00016595,2]
[394622975,1763794249793,-500.0,0.00016595,2]
[394622976,1763794249803,-973.59,0.00016595,2]
[394622977,1763794249812,-500.0,0.00016595,2]
[394622978,1763794249823,-633.68886674,0.00016595,2]
[394622979,1763794249834,-500.0,0.00016595,2]
[394622980,1763794249845,-500.0,0.00016595,2]
[394622981,1763794249855,-150.0,0.00016595,2]
[394622982,1763794249866,-500.0,0.00016595,2]
[394622983,1763794249875,-500.0,0.00016595,2]
[394622984,1763794249885,-500.0,0.00016595,2]
[394622985,1763794249894,-500.0,0.00016595,2]
[394622986,1763794249905,-500.0,0.00016595,2]
[394622987,1763794249914,-500.0,0.00016595,2]
[394622988,1763794249925,-500.0,0.00016595,2]
[394622989,1763794249935,-741.9,0.00016595,2]
[394622990,1763794249944,-656.9,0.00016595,2]
[394622991,1763794249954,-500.0,0.00016595,2]
[394622992,1763794249963,-500.0,0.00016595,2]
[394622993,1763794249974,-500.0,0.00016595,2]
[394622994,1763794249984,-500.0,0.00016595,2]
[394622995,1763794249994,-500.0,0.00016595,2]
[394622996,1763794250003,-500.0,0.00016595,2]
[394622997,1763794250013,-500.0,0.00016595,2]
[394622998,1763794250023,-500.0,0.00016595,2]
[394622999,1763794250034,-723.57,0.00016595,2]
[394623000,1763794250054,-500.0,0.00016595,2]
[394623001,1763794250068,-1356.25,0.00016595,2]
[394623002,1763794250079,-500.0,0.00016595,2]
[394623003,1763794250089,-901.3,0.00016595,2]
[394623004,1763794250099,-718.28,0.00016595,2]
[394623005,1763794250110,-500.0,0.00016595,2]
[394623006,1763794250119,-500.0,0.00016595,2]
[394623007,1763794250128,-500.0,0.00016595,2]
[394623008,1763794250138,-150.0,0.00016595,2]
[394623009,1763794250148,-618.0,0.00016595,2]
[394623010,1763794250158,-618.0,0.00016595,2]
[394623011,1763794250168,-500.0,0.00016595,2]
[394623012,1763794250178,-500.0,0.00016595,3]
[394623013,1763794250188,-500.0,0.00016595,4]
[394623014,1763794250197,-500.0,0.00016595,2]
[394623015,1763794250207,-763.36,0.00016595,2]
[394623016,1763794250217,-500.0,0.00016595,2]
[394623017,1763794250227,-500.0,0.00016595,2]
[394623018,1763794250236,-406.60820655,0.00016595,2]
[394623019,1763794250246,-505.81003153,0.00016595,2]
[394623020,1763794250256,-500.0,0.00016595,2]
[394623021,1763794250266,-500.0,0.00016595,2]
[394623022,1763794250278,-513.54730842,0.00016595,2]
[394623023,1763794250287,-412.25735478,0.00016595,2]
[394623024,1763794250297,-1117.36,0.00016595,2]
[394623025,1763794250307,-500.0,0.00016595,2]
[394623026,1763794250316,-500.0,0.00016595,2]
[394623027,1763794250327,-1603.32,0.00016595,2]
[394623028,1763794250337,-937.64,0.00016595,2]
[394623029,1763794250347,-500.0,0.00016595,2]
[394623030,1763794250356,-1179.07,0.00016595,2]
[394623031,1763794250366,-500.0,0.00016595,2]
[394623032,1763794250375,-422.12949308,0.00016595,2]
[394623033,1763794250385,-693.62,0.00016595,2]
[394623034,1763794250395,-500.0,0.00016595,2]
[394623035,1763794250405,-500.0,0.00016595,2]
[394623036,1763794250414,-1229.13,0.00016595,2]
[394623037,1763794250424,-500.0,0.00016595,2]
[394623038,1763794250433,-618.66651799,0.00016595,2]
[394623039,1763794250442,-509.37,0.00016595,2]
[394623040,1763794250452,-1034.72,0.00016595,2]
[394623041,1763794250461,-500.0,0.00016595,2]
[394623042,1763794250471,-510.89,0.00016595,2]
[394623043,1763794250480,-500.0,0.00016595,2]
[394623044,1763794250489,-431.65548601,0.00016595,2]
[394623045,1763794250499,-530.49,0.00016595,2]
[394623046,1763794250508,-534.72,0.00016595,2]
[394623047,1763794250518,-500.0,0.00016595,2]
[394623048,1763794250528,-616.38313741,0.00016595,2]
[394623049,1763794250538,-500.0,0.00016595,2]
[394623050,1763794250548,-1200.18,0.00016595,2]
[394623051,1763794250558,-781.88,0.00016595,2]
[394623052,1763794250568,-500.0,0.00016595,2]
[394623053,1763794250578,-500.0,0.00016595,2]
[394623054,1763794250588,-824.31,0.00016596,2]
[394623055,1763794250843,-514.56955794,0.00016596,2]
[394623056,1763794250863,-500.0,0.00016596,2]
[394623057,1763794250872,-500.0,0.00016596,2]
[394623058,1763794250881,-902.69,0.00016596,2]
[394623059,1763794250890,-543.53,0.00016596,2]
[394623060,1763794250899,-500.0,0.00016596,2]
[394623061,1763794250909,-500.0,0.00016596,2]
[394623062,1763794250918,-500.0,0.00016596,2]
[394623063,1763794250927,-500.0,0.00016596,2]
[394623064,1763794250936,-500.0,0.00016596,2]
[394623065,1763794250946,-570.35392612,0.00016596,2]
[394623066,1763794250955,-500.0,0.00016596,2]
[394623067,1763794250964,-500.0,0.00016596,2]
[394623068,1763794250974,-500.0,0.00016596,2]
[394623069,1763794250983,-500.0,0.00016596,2]
[394623070,1763794250992,-500.0,0.00016596,2]
[394623071,1763794251002,-500.0,0.00016596,2]
[394623072,1763794251011,-1268.07,0.00016596,2]
[394623073,1763794251020,-500.0,0.00016596,2]
[394623074,1763794251029,-500.0,0.00016596,2]
[394623075,1763794251039,-500.0,0.00016596,2]
[394623076,1763794251050,-409.54134714,0.00016596,2]
[394623077,1763794251059,-500.0,0.00016596,2]
[394623078,1763794251070,-630.95,0.00016596,2]
[394623079,1763794251079,-500.0,0.00016596,2]
[394623080,1763794251088,-609.69,0.00016596,2]
[394623081,1763794251098,-500.0,0.00016596,2]
[394623082,1763794251107,-787.89,0.00016596,2]
[394623083,1763794251116,-847.33,0.00016596,2]
[394623084,1763794251125,-975.05,0.00016596,2]
[394623085,1763794251135,-500.0,0.00016596,2]
[394623086,1763794251144,-1310.69,0.00016596,2]
[394623087,1763794251155,-500.0,0.00016596,2]
[394623088,1763794251164,-500.0,0.00016596,2]
[394623089,1763794251174,-500.0,0.00016596,2]
[394623090,1763794251183,-2171.89,0.00016596,2]
[394623091,1763794251192,-500.0,0.00016596,2]
[394623092,1763794251201,-500.0,0.00016596,2]
[394623093,1763794251211,-500.0,0.00016596,2]
[394623094,1763794251220,-500.0,0.00016596,2]
[394623095,1763794251229,-1007.79,0.00016596,2]
[394623096,1763794251238,-451.45283354,0.00016596,2]
[394623097,1763794251247,-856.22,0.00016596,2]
[394623098,1763794251259,-533.86,0.00016596,2]
[394623099,1763794251278,-1114.85,0.00016596,2]
[394623100,1763794251287,-608.51,0.00016596,2]
[394623101,1763794251297,-500.0,0.00016596,2]
[394623102,1763794251306,-169.0518905,0.00016596,2]
[394623103,1763794251316,-1103.11,0.00016596,2]
[394623104,1763794251326,-586.4659996,0.00016596,2]
[394623105,1763794251336,-745.99,0.00016596,2]
[394623106,1763794251345,-500.0,0.00016596,2]
[394623107,1763794251354,-500.0,0.00016596,2]
[394623108,1763794251364,-552.48,0.00016596,2]
[394623109,1763794251374,-1146.36,0.00016596,2]
[394623110,1763794251383,-723.0,0.00016596,2]
[394623111,1763794251392,-500.0,0.00016596,2]
[394623112,1763794251402,-510.46078433,0.00016596,2]
[394623113,1763794251412,-500.0,0.00016596,2]
[394623114,1763794251422,-500.0,0.00016596,2]
[394623115,1763794251435,-1060.51,0.00016596,2]
[394623116,1763794251445,-500.0,0.00016596,2]
[394623117,1763794251455,-500.0,0.00016596,2]
[394623118,1763794251465,-500.0,0.00016596,2]
[394623119,1763794251474,-524.82,0.00016596,2]
[394623120,1763794251484,-565.76,0.00016596,2]
[394623121,1763794251494,-500.0,0.00016596,2]
[394623122,1763794251503,-500.0,0.00016596,2]
[394623123,1763794251512,-500.0,0.00016596,2]
[394623124,1763794251522,-1259.29,0.00016596,2]
[394623125,1763794251531,-500.0,0.00016596,2]
[394623126,1763794251540,-500.0,0.00016596,2]
[394623127,1763794251550,-1002.78,0.00016596,2]
[394623128,1763794251559,-500.0,0.00016596,2]
[394623129,1763794251569,-1183.34,0.00016596,2]
[394623130,1763794251578,-500.0,0.00016596,2]
[394623131,1763794251588,-500.0,0.00016596,2]
[394623132,1763794251598,-653.01,0.00016596,2]
[394623133,1763794251607,-3165.4457568,0.00016596,2]
[394623134,1763794251617,-1353.3,0.00016596,2]
[394623135,1763794251627,-505.88317562,0.00016596,2]
[394623136,1763794251636,-649.95,0.00016596,2]
[394623137,1763794251645,-500.0,0.00016596,2]
[394623138,1763794251656,-500.0,0.00016596,2]
[394623139,1763794251666,-500.0,0.00016596,2]
[394623140,1763794251675,-500.0,0.00016596,2]
[394623141,1763794251686,-988.04,0.00016596,2]
[394623142,1763794251701,-500.0,0.00016596,2]
[394623143,1763794251711,-500.0,0.00016596,2]
[394623144,1763794251720,-500.0,0.00016596,2]
[394623145,1763794251731,-1484.02,0.00016596,2]
[394623146,1763794251741,-500.0,0.00016596,2]
[394623147,1763794251751,-640.61,0.00016596,2]
[394623148,1763794251761,-531.61,0.00016596,2]
[394623149,1763794251772,-500.0,0.00016596,2]
[394623150,1763794251782,-500.0,0.00016596,2]
[394623151,1763794251791,-844.22,0.00016596,2]
[394623152,1763794251801,-500.0,0.00016596,2]
[394623153,1763794251811,-500.0,0.00016596,2]
[394623154,1763794251824,-635.94,0.00016596,2]
[394623155,1763794251834,-553.02,0.00016596,2]
[394623156,1763794251844,-903.73,0.00016596,2]
[394623157,1763794251856,-500.0,0.00016596,2]
[394623158,1763794251867,-500.0,0.00016596,2]
[394623159,1763794251880,-500.0,0.00016596,2]
[394623160,1763794251891,-1090.24,0.00016596,2]
[394623161,1763794251903,-500.0,0.00016596,2]
[394623162,1763794251913,-514.46390555,0.00016596,2]
[394623163,1763794251922,-420.74864404,0.00016596,2]
[394623164,1763794251932,-446.40226191,0.00016596,2]
[394623165,1763794251942,-854.22,0.00016596,2]
[394623166,1763794251951,-412.58883384,0.00016596,2]
[394623167,1763794251972,-538.66636539,0.00016596,2]
[394623168,1763794251983,-402.99126063,0.00016596,2]
[394623169,1763794251994,-500.0,0.00016596,2]
[394623170,1763794252004,-406.53237433,0.00016596,2]
[394623171,1763794252015,-1066.78,0.00016596,2]
[394623172,1763794252025,-500.0,0.00016596,2]
[394623173,1763794252035,-407.21384943,0.00016596,2]
[394623174,1763794252045,-604.87,0.00016596,2]
[394623175,1763794252055,-500.0,0.00016596,2]
[394623176,1763794252065,-500.0,0.00016596,2]
[394623177,1763794252076,-500.0,0.00016596,2]
[394623178,1763794252086,-500.0,0.00016596,2]
[394623179,1763794252096,-500.0,0.00016596,2]
[394623180,1763794252106,-171.145,0.00016596,2]
[394623181,1763794252116,-1390.0,0.00016597,2]
[394623182,1763794252126,-159.66062577,0.00016646,2]
[394623183,1763794252136,-250.0,0.00016686,2]
[394623184,1763794252146,-250.0,0.00016686,2]
[394623185,1763794252159,-3017.38053016,0.00016721,2]
[394623186,1763794252169,-150.0,0.00016732,2]
[394623187,1763794252179,-150.0,0.00016732,2]
[394623188,1763794252188,-500.0,0.00016732,2]
[394623189,1763794252198,-576.44938177,0.00016745,2]
[394623190,1763794252208,-500.0,0.00016767,2]
[394623191,1763794252218,-500.0,0.00016767,2]
[394623192,1763794252228,-500.0,0.00016767,2]
[394623193,1763794252238,-500.0,0.00016767,2]
[394623194,1763794252248,-500.0,0.00016767,2]
[394623195,1763794252258,-500.0,0.00016767,2]
[394623196,1763794252268,-504.68029361,0.00016767,2]
[394623197,1763794252279,-500.0,0.00016767,2]
[394623198,1763794252289,-500.0,0.00016767,2]
[394623199,1763794252300,-500.0,0.00016767,2]
[394623200,1763794252309,-500.0,0.00016767,2]
[394623201,1763794252319,-500.0,0.00016767,2]
[394623202,1763794252334,-500.0,0.00016767,2]
[394623203,1763794252344,-500.0,0.00016767,2]
[394623204,1763794252355,-984.74,0.00016767,2]
[394623205,1763794252365,-500.0,0.00016767,2]
[394623206,1763794252375,-500.0,0.00016767,2]
[394623207,1763794252385,-345.37985756,0.00016767,2]
[394623208,1763794252395,-500.0,0.00016768,2]
[394623209,1763794252406,-365.36392696,0.00016768,2]
[394623210,1763794252416,-500.0,0.00016768,2]
[394623211,1763794252427,-500.0,0.00016768,2]
[394623212,1763794252437,-388.11310878,0.00016768,2]
[394623213,1763794252446,-500.0,0.00016768,2]
[394623214,1763794252456,-500.0,0.00016768,2]
[394623215,1763794252466,-500.0,0.00016768,2]
[394623216,1763794252476,-500.0,0.00016768,2]
[394623217,1763794252486,-511.73762306,0.00016768,2]
[394623218,1763794252496,-443.30165189,0.00016768,2]
[394623219,1763794252505,-500.0,0.00016768,2]
[394623220,1763794252515,-500.0,0.00016768,2]
[394623221,1763794252525,-516.57099484,0.00016768,2]
[394623222,1763794252535,-500.0,0.00016768,2]
[394623223,1763794252545,-500.0,0.00016768,2]
[394623224,1763794252556,-500.0,0.00016768,2]
[394623225,1763794252569,-500.0,0.00016768,2]
[394623226,1763794252579,-500.0,0.00016768,2]
[394623227,1763794252588,-500.0,0.00016768,2]
[394623228,1763794252600,-500.0,0.00016768,2]
[394623229,1763794252610,-500.0,0.00016768,2]
[394623230,1763794252619,-500.0,0.00016768,2]
[394623231,1763794252629,-500.0,0.00016768,2]
[394623232,1763794252641,-500.0,0.00016768,2]
[394623233,1763794252653,-513.23650205,0.00016768,2]
[394623234,1763794252662,-508.88772726,0.00016768,2]
[394623235,1763794252672,-500.0,0.00016768,2]
[394623236,1763794252681,-500.0,0.00016768,2]
[394623237,1763794252692,-500.0,0.00016768,2]
[394623238,1763794252710,-500.0,0.00016768,2]
[394623239,1763794252722,-500.0,0.00016768,2]
[394623240,1763794252732,-500.0,0.00016768,2]
[394623241,1763794252744,-500.0,0.00016768,2]
[394623242,1763794252756,-500.0,0.00016768,2]
[394623243,1763794252766,-658.21,0.00016768,2]
[394623244,1763794252778,-500.0,0.00016768,2]
[394623245,1763794252788,-400.0,0.00016768,2]
[394623246,1763794252799,-187.15489233,0.00016768,2]
[394623247,1763794252811,-500.0,0.00016768,2]
[394623248,1763794252822,-500.0,0.00016768,2]
[394623249,1763794252832,-500.0,0.00016768,2]
[394623250,1763794252844,-500.0,0.00016768,2]
[394623251,1763794252855,-500.0,0.00016768,2]
[394623252,1763794252866,-500.0,0.00016768,2]
[394623253,1763794252876,-500.0,0.00016768,2]
[394623254,1763794252885,-500.0,0.00016768,2]
[394623255,1763794252898,-316.29023139,0.00016768,2]
[394623256,1763794252910,-500.0,0.00016768,2]
[394623257,1763794252920,-500.0,0.00016768,2]
[394623258,1763794252929,-500.0,0.00016768,2]
[394623259,1763794252939,-1568.52,0.00016768,2]
[394623260,1763794252950,-1007.46,0.00016768,2]
[394623261,1763794252959,-500.0,0.00016768,2]
[394623262,1763794252969,-1250.67,0.00016768,2]
[394623263,1763794252979,-500.0,0.00016768,2]
[394623264,1763794252989,-500.0,0.00016768,2]
[394623265,1763794252999,-1048.06,0.00016768,2]
[394623266,1763794253009,-946.34,0.00016768,2]
[394623267,1763794253019,-500.0,0.00016768,2]
[394623268,1763794253028,-550.15714478,0.00016768,2]
[394623269,1763794253038,-500.0,0.00016768,2]
[394623270,1763794253048,-500.0,0.00016768,2]
[394623271,1763794253058,-500.0,0.00016768,2]
[394623272,1763794253068,-500.0,0.00016768,2]
[394623273,1763794253078,-500.0,0.00016768,2]
[394623274,1763794253088,-223.70756025,0.00016768,2]
[394623275,1763794253102,-201.70086876,0.00016768,2]
[394623276,1763794253112,-500.0,0.00016768,2]
[394623277,1763794253121,-500.0,0.00016768,2]
[394623278,1763794253131,-500.0,0.00016768,2]
[394623279,1763794253140,-711.52,0.00016768,2]
[394623280,1763794253150,-500.0,0.00016768,2]
[394623281,1763794253160,-849.89,0.00016768,2]
[394623282,1763794253172,-500.0,0.00016768,2]
[394623283,1763794253182,-500.0,0.00016768,2]
[394623284,1763794253193,-500.0,0.00016768,2]
[394623285,1763794253203,-500.0,0.00016768,2]
[394623286,1763794253212,-854.66,0.00016768,2]
[394623287,1763794253222,-500.0,0.00016768,2]
[394623288,1763794253232,-500.0,0.00016768,2]
[394623289,1763794253242,-500.0,0.00016768,2]
[394623290,1763794253252,-474.72999271,0.00016768,2]
[394623291,1763794253262,-500.0,0.00016768,2]
[394623292,1763794253280,-500.0,0.00016768,2]
[394623293,1763794253290,-500.0,0.00016768,2]
[394623294,1763794253303,-360.99566684,0.00016768,2]
[394623295,1763794253312,-500.0,0.00016768,2]
[394623296,1763794253322,-540.58441475,0.00016768,2]
[394623297,1763794253331,-500.0,0.00016768,2]
[394623298,1763794253341,-500.0,0.00016768,2]
[394623299,1763794253350,-500.0,0.00016768,2]
[394623300,1763794253359,-500.0,0.00016768,2]
[394623301,1763794253369,-500.0,0.00016768,2]
[394623302,1763794253379,-500.0,0.00016768,2]
[394623303,1763794253388,-500.0,0.00016768,2]
[394623304,1763794253397,-344.94854337,0.00016768,2]
[394623305,1763794253407,-602.92,0.00016768,2]
[394623306,1763794253417,-500.0,0.00016768,2]
[394623307,1763794253427,-500.0,0.00016768,2]
[394623308,1763794253436,-500.0,0.00016768,2]
[394623309,1763794253445,-500.0,0.00016768,2]
[394623310,1763794253454,-599.23945986,0.00016768,2]
[394623311,1763794253464,-1014.16,0.00016768,2]
[394623312,1763794253474,-500.0,0.00016768,2]
[394623313,1763794253485,-500.0,0.00016768,2]
[394623314,1763794253494,-500.0,0.00016768,2]
[394623315,1763794253504,-500.0,0.00016768,2]
[394623316,1763794253513,-1143.04,0.00016768,2]
[394623317,1763794253522,-500.0,0.00016768,2]
[394623318,1763794253533,-711.79,0.00016768,2]
[394623319,1763794253551,-500.0,0.00016768,2]
[394623320,1763794253567,-500.0,0.00016768,2]
[394623321,1763794253580,-500.0,0.00016768,2]
[394623322,1763794253592,-500.0,0.00016768,2]
[394623323,1763794253606,-429.03815306,0.00016768,2]
[394623324,1763794253620,-500.0,0.00016768,2]
[394623325,1763794253635,-500.0,0.00016768,2]
[394623326,1763794253649,-500.0,0.00016768,2]
[394623327,1763794253665,-500.0,0.00016768,2]
[394623328,1763794253679,-500.0,0.00016768,2]
[394623329,1763794253691,-500.0,0.00016768,2]
[394623330,1763794253706,-500.0,0.00016768,2]
[394623331,1763794253721,-500.0,0.00016768,2]
[394623332,1763794253735,-1151.58,0.00016768,2]
[394623333,1763794253749,-502.00765391,0.00016768,2]
[394623334,1763794253762,-500.0,0.00016768,2]
[394623335,1763794253780,-500.0,0.00016768,2]
[394623336,1763794253806,-931.47,0.00016768,2]
[394623337,1763794253824,-500.0,0.00016768,2]
[394623338,1763794253840,-500.0,0.00016768,2]
[394623339,1763794253857,-960.5,0.00016768,2]
[394623340,1763794253872,-500.0,0.00016768,2]
[394623341,1763794253887,-807.31,0.00016768,2]
[394623342,1763794253900,-500.0,0.00016768,2]
[394623343,1763794253913,-709.5,0.00016768,2]
[394623344,1763794253932,-500.0,0.00016768,2]
[394623345,1763794253951,-500.0,0.00016768,2]
[394623346,1763794253969,-753.8,0.00016768,2]
[394623347,1763794253984,-500.0,0.00016768,2]
[394623348,1763794253995,-1016.24,0.00016768,2]
[394623349,1763794254011,-500.0,0.00016768,2]
[394623350,1763794254023,-500.0,0.00016768,2]
[394623351,1763794254039,-152.52917344,0.00016768,2]
[394623352,1763794254052,-500.0,0.00016768,2]
[394623353,1763794254063,-500.0,0.00016768,2]
[394623354,1763794254074,-500.0,0.00016768,2]
[394623355,1763794254086,-1259.62,0.00016768,2]
[394623356,1763794254105,-500.0,0.00016768,2]
[394623357,1763794254119,-523.38148311,0.00016768,2]
[394623358,1763794254130,-500.0,0.00016768,2]
[394623359,1763794254142,-775.47,0.00016768,2]
[394623360,1763794254159,-1122.35,0.00016768,2]
[394623361,1763794254172,-1814.47,0.00016768,2]
[394623362,1763794254191,-500.0,0.00016768,2]
[394623363,1763794254206,-500.0,0.00016768,2]
[394623364,1763794254225,-500.0,0.00016768,2]
[394623365,1763794254241,-500.0,0.00016768,2]
[394623366,1763794254258,-500.0,0.00016768,2]
[394623367,1763794254286,-500.0,0.00016768,2]
[394623368,1763794254301,-500.0,0.00016768,2]
[394623369,1763794254316,-500.0,0.00016768,2]
[394623370,1763794254331,-564.0519765,0.00016768,2]
[394623371,1763794254346,-500.0,0.00016768,2]
[394623372,1763794254365,-500.0,0.00016768,2]
[394623373,1763794254379,-578.71648474,0.00016768,2]
[394623374,1763794254393,-500.0,0.00016768,2]
[394623375,1763794254413,-500.0,0.00016768,2]
[394623376,1763794254427,-822.35,0.00016768,2]
[394623377,1763794254442,-500.0,0.00016768,2]
[394623378,1763794254456,-554.53,0.00016768,2]
[394623379,1763794254469,-500.0,0.00016768,2]
[394623380,1763794254482,-500.0,0.00016768,2]
[394623381,1763794254494,-500.0,0.00016768,2]
[394623382,1763794254507,-500.0,0.00016768,2]
[394623383,1763794254520,-500.0,0.00016768,2]
[394623384,1763794254533,-500.0,0.00016768,2]
[394623385,1763794254546,-500.0,0.00016768,2]
[394623386,1763794254559,-500.0,0.00016768,2]
[394623387,1763794254572,-500.0,0.00016768,2]
[394623388,1763794254584,-500.0,0.00016768,2]
[394623389,1763794254597,-500.0,0.00016768,2]
[394623390,1763794254609,-500.0,0.00016768,2]
[394623391,1763794254621,-500.0,0.00016768,2]
[394623392,1763794254633,-500.0,0.00016768,2]
[394623393,1763794254645,-500.0,0.00016768,2]
[394623394,1763794254657,-500.0,0.00016768,2]
[394623395,1763794254670,-500.0,0.00016768,2]
[394623396,1763794254682,-500.0,0.00016768,2]
[394623397,1763794254695,-500.0,0.00016768,2]
[394623398,1763794254707,-500.0,0.00016768,2]
[394623399,1763794254719,-500.0,0.00016768,2]
[394623400,1763794254731,-500.0,0.00016768,2]
[394623401,1763794254745,-500.0,0.00016768,2]
[394623402,1763794254758,-725.24,0.00016768,2]
[394623403,1763794254770,-500.0,0.00016768,2]
[394623404,1763794254785,-500.0,0.00016768,2]
[394623405,1763794254804,-500.0,0.00016768,2]
[394623406,1763794254816,-500.0,0.00016768,2]
[394623407,1763794254829,-500.0,0.00016768,2]
[394623408,1763794254843,-500.0,0.00016768,2]
[394623409,1763794254855,-5030.19,0.00016768,2]
[394623410,1763794254868,-436.81178714,0.00016768,2]
[394623411,1763794254880,-500.0,0.00016768,2]
[394623412,1763794254892,-500.0,0.00016768,2]
[394623413,1763794254903,-500.0,0.00016768,2]
[394623414,1763794254915,-524.72749282,0.00016768,2]
[394623415,1763794254926,-500.0,0.00016768,2]
[394623416,1763794254938,-1508.24,0.00016768,2]
[394623417,1763794254950,-890.72,0.00016768,2]
[394623418,1763794254961,-500.0,0.00016768,2]
[394623419,1763794254973,-500.0,0.00016768,2]
[394623420,1763794254984,-500.0,0.00016768,2]
[394623421,1763794254996,-1061.04,0.00016768,2]
[394623422,1763794255008,-500.0,0.00016768,2]
[394623423,1763794255020,-500.0,0.00016768,2]
[394623424,1763794255032,-583.21,0.00016768,2]
[394623425,1763794255043,-1501.92,0.00016768,2]
[394623426,1763794255055,-953.38,0.00016768,2]
[394623427,1763794255066,-500.0,0.00016768,2]
[394623428,1763794255078,-500.0,0.00016768,2]
[394623429,1763794255089,-623.86,0.00016768,2]
[394623430,1763794255101,-500.0,0.00016768,2]
[394623431,1763794255113,-500.0,0.00016768,2]
[394623432,1763794255125,-1224.03,0.00016768,2]
[394623433,1763794255137,-500.0,0.00016768,2]
[394623434,1763794255148,-775.05,0.00016768,2]
[394623435,1763794255160,-1147.32,0.00016768,2]
[394623436,1763794255172,-500.0,0.00016768,2]
[394623437,1763794255184,-409.28404061,0.00016768,2]
[394623438,1763794255196,-639.82,0.00016768,2]
[394623439,1763794255207,-500.0,0.00016768,2]
[394623440,1763794255219,-958.79,0.00016768,2]
[394623441,1763794255230,-500.0,0.00016768,2]
[394623442,1763794255242,-500.0,0.00016768,2]
[394623443,1763794255255,-626.83000478,0.00016768,2]
[394623444,1763794255267,-500.0,0.00016768,2]
[394623445,1763794255278,-500.0,0.00016768,2]
[394623446,1763794255289,-500.0,0.00016768,2]
[394623447,1763794255301,-500.0,0.00016768,2]
[394623448,1763794255312,-587.18,0.00016768,2]
[394623449,1763794255324,-564.57069539,0.00016768,2]
[394623450,1763794255335,-615.72,0.00016768,2]
[394623451,1763794255347,-500.0,0.00016768,2]
[394623452,1763794255358,-412.58851354,0.00016768,2]
[394623453,1763794255370,-623.33,0.00016768,2]
[394623454,1763794255381,-500.0,0.00016768,2]
[394623455,1763794255393,-508.15364529,0.00016768,2]
[394623456,1763794255405,-868.93,0.00016768,2]
[394623457,1763794255417,-500.0,0.00016768,2]
[394623458,1763794255428,-500.0,0.00016768,2]
[394623459,1763794255441,-500.0,0.00016768,2]
[394623460,1763794255453,-798.39,0.00016768,2]
[394623461,1763794255465,-500.0,0.00016768,2]
[394623462,1763794255477,-500.0,0.00016768,2]
[394623463,1763794255488,-500.0,0.00016768,2]
[394623464,1763794255500,-500.0,0.00016768,2]
[394623465,1763794255513,-730.25,0.00016768,2]
[394623466,1763794255524,-592.39,0.00016768,2]
[394623467,1763794255536,-500.0,0.00016768,2]
[394623468,1763794255548,-664.86,0.00016768,2]
[394623469,1763794255560,-1520.99,0.00016768,2]
[394623470,1763794255571,-813.27,0.00016768,2]
[394623471,1763794255583,-500.0,0.00016768,2]
[394623472,1763794255595,-500.0,0.00016768,2]